bitfinex/quotes_BTCUSD_20250213
["timestamp","ask_amount","ask_price","bid_price","bid_amount"]
[1739447354083,0.01785066,95977.0,95976.0,0.156289]
[1739447355880,0.01010414,95977.0,95976.0,0.156289]
[1739447356516,0.01010414,95977.0,95976.0,0.15733079]
[1739447357124,0.01010414,95977.0,95976.0,0.156289]
[1739447358567,0.01010414,95977.0,95976.0,0.15733078]
[1739447360386,0.00035568,95977.0,95976.0,0.15733078]
[1739447362049,0.00035568,95977.0,95976.0,0.156289]
[1739447363379,0.00035568,95977.0,95976.0,0.15733073]
[1739447363591,0.00035568,95977.0,95976.0,0.156289]
[1739447363962,0.00035568,95977.0,95976.0,0.15733073]
[1739447364575,0.00035568,95977.0,95976.0,0.40983438]
[1739447364819,0.00035568,95977.0,95976.0,0.48879265]
[1739447364998,0.00035568,95977.0,95976.0,0.48779265]
[1739447365397,0.00035568,95977.0,95976.0,1.52198161]
[1739447365826,0.00135568,95977.0,95976.0,1.52198161]
[1739447366212,0.00135568,95977.0,95976.0,1.54236637]
[1739447366994,0.00235568,95977.0,95976.0,1.54236637]
[1739447367305,0.00135568,95977.0,95976.0,1.54236637]
[1739447368178,0.00235568,95977.0,95976.0,1.54236637]
[1739447368454,0.00235568,95977.0,95976.0,1.54247287]
[1739447369187,0.00235568,95977.0,95976.0,2.09227287]
[1739447371179,0.00135568,95977.0,95976.0,2.09227287]
[1739447371674,0.00235568,95977.0,95976.0,1.03769915]
[1739447371920,0.00235568,95977.0,95976.0,0.3853955]
[1739447373700,0.00235568,95977.0,95976.0,1.41958446]
[1739447374184,0.00235568,95977.0,95976.0,0.3853955]
[1739447375163,0.00235568,95977.0,95976.0,0.48789915]
[1739447379120,0.00035568,95977.0,95976.0,0.48789915]
[1739447379523,0.00135568,95977.0,95976.0,0.48789915]
[1739447381120,0.00235568,95977.0,95976.0,0.80959915]
[1739447382536,0.00135568,95977.0,95976.0,0.80959915]
[1739447382949,0.00235568,95977.0,95976.0,0.80959915]
[1739447383375,0.00235568,95977.0,95976.0,0.84209612]
[1739447383581,0.00235568,95977.0,95976.0,0.80959915]
[1739447384193,0.00135568,95977.0,95976.0,0.80959915]
[1739447384663,0.00235568,95977.0,95976.0,0.80959915]
[1739447385520,0.00235568,95977.0,95976.0,0.7070955]
[1739447385938,0.00135568,95977.0,95976.0,0.80959915]
[1739447386573,0.00235568,95977.0,95976.0,0.80959915]
[1739447387518,0.00135568,95977.0,95976.0,0.80959915]
[1739447388013,0.00235568,95977.0,95976.0,0.84210491]
[1739447389496,0.00235568,95977.0,95976.0,0.80959915]
[1739447390659,0.00135568,95977.0,95976.0,0.80959915]
[1739447390870,0.00235568,95977.0,95976.0,0.80959915]
[1739447391096,0.00135568,95977.0,95976.0,0.80959915]
[1739447391376,0.00235568,95977.0,95976.0,0.80959915]
[1739447393271,0.01211728,95977.0,95976.0,0.80959915]
[1739447394778,0.00235568,95977.0,95976.0,0.80959915]
[1739447395008,0.00235568,95977.0,95976.0,0.84212085]
[1739447395643,0.00235568,95977.0,95976.0,0.84152085]
[1739447396062,0.00135568,95977.0,95976.0,0.84152085]
[1739447396464,0.00235568,95977.0,95976.0,0.84152085]
[1739447396723,0.00135568,95977.0,95976.0,1.40132085]
[1739447396935,0.0077696,95998.0,95997.0,0.232454]
[1739447397143,0.0077696,95998.0,95997.0,0.65665765]
[1739447397353,0.0077696,95998.0,95997.0,0.80665765]
[1739447397772,0.01753358,95998.0,95997.0,0.80665765]
[1739447398200,0.01953358,95998.0,95997.0,0.80665765]
[1739447398608,0.01176398,95998.0,95997.0,0.80665765]
[1739447398816,0.002,95998.0,95997.0,0.80665765]
[1739447399020,0.004,95998.0,95997.0,0.80665765]
[1739447399878,0.002,95998.0,95997.0,0.80665765]
[1739447400496,0.00022408,95999.0,95998.0,0.306253]
[1739447400707,0.00022408,95999.0,95998.0,0.40875665]
[1739447401712,0.00122408,95999.0,95998.0,0.73045665]
[1739447402698,0.00222408,95999.0,95998.0,0.73045665]
[1739447403626,0.00022408,95999.0,95998.0,0.73045665]
[1739447403839,0.00222408,95999.0,95998.0,0.73045665]
[1739447404710,0.00222408,95999.0,95998.0,1.28025665]
[1739447404926,0.00222408,95999.0,95998.0,1.31274733]
[1739447405169,0.00022408,95999.0,95998.0,1.31274733]
[1739447405390,0.00222408,95999.0,95998.0,1.31774733]
[1739447405629,0.00222408,95999.0,95998.0,1.28525665]
[1739447405842,0.00122408,95999.0,95998.0,1.28025665]
[1739447406049,0.00222408,95999.0,95998.0,1.29584725]
[1739447406698,0.00122408,95999.0,95998.0,1.29584725]
[1739447407200,0.00222408,95999.0,95998.0,1.29584725]
[1739447408419,8e-08,95999.0,95998.0,1.33831423]
[1739447408660,8e-08,95999.0,95998.0,1.44851423]
[1739447409395,8e-08,95999.0,95998.0,1.40551423]
[1739447409885,8e-08,95999.0,95998.0,1.37304725]
[1739447410813,8e-08,95999.0,95998.0,1.38304725]
[1739447411029,8e-08,95999.0,95998.0,1.37304725]
[1739447411242,8e-08,95999.0,95998.0,1.21245665]
[1739447411456,8e-08,95999.0,95998.0,1.032753]
[1739447411667,8e-08,95999.0,95998.0,0.005]
[1739447412095,0.10250373,95999.0,95998.0,0.005]
[1739447412310,0.10250373,95999.0,95975.0,0.02129387]
[1739447412538,8e-08,95999.0,95979.0,0.15]
[1739447412750,0.00100008,95999.0,95980.0,0.11787569]
[1739447412984,0.156245,96003.0,95980.0,0.15104165]
[1739447413205,0.0087486,95999.0,95998.0,0.156253]
[1739447413387,0.0097486,95999.0,95998.0,0.156253]
[1739447413607,0.0087486,95999.0,95998.0,0.156253]
[1739447413911,0.0107486,95999.0,95998.0,0.156253]
[1739447414119,0.0107486,95999.0,95996.0,0.20834]
[1739447414322,0.003,95999.0,95980.0,0.11683404]
[1739447414524,0.001,95999.0,95982.0,0.208372]
[1739447414731,0.003,95999.0,95998.0,0.156253]
[1739447415180,0.00222366,95999.0,95998.0,0.156253]
[1739447415365,0.00322366,95999.0,95998.0,0.156253]
[1739447416101,0.00222366,95999.0,95998.0,0.156253]
[1739447416319,0.00222366,95999.0,95996.0,0.20834]
[1739447416567,0.00422366,95999.0,95970.0,0.11683404]
[1739447416786,0.00422366,95999.0,95980.0,0.15]
[1739447416998,0.156259,95995.0,95986.0,0.156272]
[1739447417213,0.208339,95997.0,95980.0,0.15]
[1739447417424,0.00422366,95999.0,95991.0,0.156263]
[1739447417641,0.00422366,95999.0,95979.0,0.15]
[1739447417879,0.21055966,95999.0,95979.0,0.15]
[1739447418093,0.156256,95996.0,95988.0,0.156268]
[1739447418261,0.156254,95998.0,95989.0,0.156267]
[1739447418787,0.156255,95997.0,95989.0,0.156267]
[1739447419223,0.00322366,95999.0,95979.0,0.15]
[1739447419429,0.0077486,95997.0,95980.0,0.00104173]
[1739447419586,0.0077486,95997.0,95994.0,0.208345]
[1739447419762,0.0077486,95997.0,95993.0,0.15626]
[1739447419976,0.0077486,95997.0,95979.0,0.10250365]
[1739447419977,0.0077486,95997.0,95981.0,0.00104165]
[1739447420178,0.156263,95992.0,95978.0,0.208381]
[1739447420360,0.11683404,96010.0,95979.0,0.15]
[1739447420557,0.208315,96008.0,95980.0,0.11787578]
[1739447420758,0.002,95999.0,95995.0,0.156256]
[1739447421170,0.208322,96006.0,95996.0,0.156256]
[1739447421552,0.21986667,96016.0,95980.0,0.11683404]
[1739447421760,0.006,96010.0,95997.0,0.208338]
[1739447422181,0.208309,96011.0,95982.0,0.3217]
[1739447422392,0.156242,96005.0,95997.0,0.156253]
[1739447422606,0.208322,96005.0,95983.0,0.20837]
[1739447422815,0.208332,96001.0,95982.0,0.3217]
[1739447422936,0.208332,96001.0,95990.0,0.156264]
[1739447423139,0.004,96006.0,95982.0,0.3217]
[1739447423360,0.156246,96002.0,95993.0,0.15626]
[1739447423575,0.0049981,96006.0,95982.0,0.3217]
[1739447423576,0.10250365,96001.0,95982.0,0.3217]
[1739447423793,0.156254,95997.0,95991.0,0.156263]
[1739447423996,0.156246,96003.0,95997.0,0.156254]
[1739447424343,0.156247,96002.0,95996.0,0.156255]
[1739447424790,0.156245,96003.0,95985.0,0.208365]
[1739447424986,0.003,96005.0,95982.0,0.3217]
[1739447425119,0.001,95997.0,95996.0,0.156256]
[1739447425336,0.001,95997.0,95994.0,0.156258]
[1739447425562,0.156247,96002.0,95995.0,0.156258]
[1739447425769,0.002,96001.0,95983.0,0.20837]
[1739447425975,0.002,96001.0,95995.0,0.156256]
[1739447426178,0.001,95997.0,95993.0,0.208347]
[1739447426390,0.001,95997.0,95995.0,0.156257]
[1739447426594,0.156248,96002.0,95995.0,0.156257]
[1739447426874,0.002,96001.0,95982.0,0.3217]
[1739447427124,0.002,96001.0,96000.0,0.15625]
[1739447427361,0.002,96001.0,96000.0,0.15593285]
[1739447427557,0.002,96001.0,95997.0,0.156254]
[1739447428078,0.002,96002.0,95997.0,0.156254]
[1739447428330,0.156246,96002.0,95995.0,0.156257]
[1739447428569,0.156246,96002.0,95996.0,0.156256]
[1739447428721,0.156245,96003.0,95996.0,0.156256]
[1739447428959,0.156245,96003.0,95996.0,0.156254]
[1739447429114,0.156245,96003.0,95997.0,0.001]
[1739447429311,0.156245,96003.0,95996.0,0.156254]
[1739447429722,0.001,96002.0,95996.0,0.156254]
[1739447429952,0.001,96002.0,95985.0,0.208365]
[1739447430161,0.156246,96002.0,95995.0,0.156257]
[1739447430366,0.001,96002.0,95993.0,0.208347]
[1739447430567,0.001,96002.0,95997.0,0.156254]
[1739447430767,0.156243,96004.0,95997.0,0.156254]
[1739447431372,0.001,96003.0,95997.0,0.156254]
[1739447431678,0.156243,96004.0,95998.0,0.156253]
[1739447431871,0.001,96004.0,95998.0,0.156253]
[1739447432073,0.158243,96004.0,95997.0,0.156254]
[1739447432327,0.157243,96004.0,95997.0,0.156254]
[1739447432763,0.157243,96004.0,95998.0,0.156252]
[1739447433011,0.001,96004.0,95998.0,0.156252]
[1739447433188,0.002,96004.0,95998.0,0.156252]
[1739447433393,0.002,96004.0,95987.0,0.208361]
[1739447433592,0.158243,96004.0,95997.0,0.156254]
[1739447433729,0.00774373,96003.0,95997.0,0.156254]
[1739447433970,0.00774373,96003.0,95996.0,0.156255]
[1739447434187,0.16398873,96003.0,95996.0,0.156255]
[1739447434855,0.16398873,96003.0,95994.0,0.208345]
[1739447435491,0.00774373,96002.0,95994.0,0.208345]
[1739447436113,0.00774373,96002.0,95983.0,0.20837]
[1739447436316,0.16398973,96002.0,95994.0,0.156259]
[1739447436546,0.16398973,96002.0,95996.0,0.156256]
[1739447436547,0.00774373,96002.0,95996.0,0.156256]
[1739447436787,0.00774373,96001.0,96000.0,0.15625]
[1739447437670,0.00774373,96001.0,95998.0,0.156252]
[1739447437874,0.00774373,96001.0,95996.0,0.156255]
[1739447438081,0.208322,96006.0,95994.0,0.208345]
[1739447438292,0.156245,96003.0,95995.0,0.156256]
[1739447438537,0.156247,96002.0,95994.0,0.156259]
[1739447438784,0.00774373,96009.0,95998.0,0.001]
[1739447438995,0.156251,95999.0,95998.0,0.001]
[1739447439226,0.156254,95998.0,95983.0,0.20837]
[1739447439455,0.00774373,96001.0,95985.0,0.208364]
[1739447439671,0.156268,95989.0,95980.0,0.1563885]
[1739447439878,0.00774373,96001.0,95980.0,0.0001065]
[1739447440093,0.364586,95999.0,95998.0,0.001]
[1739447440305,0.46708965,95999.0,95998.0,0.001]
[1739447440769,0.51198965,95999.0,95998.0,0.001]
[1739447441193,0.14740365,95999.0,95983.0,0.0001065]
[1739447441401,0.156276,95984.0,95983.0,0.0001065]
[1739447441607,0.16604098,95984.0,95983.0,0.0001065]
[1739447443076,0.00976498,95984.0,95983.0,0.0001065]
[1739447443322,0.17378471,95984.0,95983.0,0.0001065]
[1739447443727,0.01750871,95984.0,95983.0,0.0001065]
[1739447443941,0.01750871,95984.0,95983.0,0.1563835]
[1739447444126,0.01750871,95984.0,95983.0,0.0001065]
[1739447444989,0.17378471,95984.0,95983.0,0.0001065]
[1739447445201,0.17378471,95984.0,95983.0,0.0011065]
[1739447445410,0.01750871,95984.0,95983.0,0.0011065]
[1739447445844,0.17378471,95984.0,95983.0,0.0011065]
[1739447446472,0.27628836,95984.0,95983.0,0.0011065]
[1739447447164,0.42628836,95984.0,95983.0,0.0011065]
[1739447447377,0.41854463,95984.0,95983.0,0.0011065]
[1739447447596,0.15628,95981.0,95980.0,0.0001065]
[1739447447811,0.25878365,95981.0,95980.0,0.0001065]
[1739447448020,0.28178365,95981.0,95980.0,0.0001065]
[1739447448969,0.28178365,95981.0,95980.0,0.0011065]
[1739447448970,0.28778365,95981.0,95980.0,0.0011065]
[1739447449186,0.29754863,95981.0,95980.0,0.0011065]
[1739447449400,0.30454863,95981.0,95980.0,0.0011065]
[1739447449606,0.48180034,95981.0,95980.0,0.0011065]
[1739447449770,0.77580034,95981.0,95980.0,0.0001065]
[1739447449983,0.76880034,95981.0,95980.0,0.0001065]
[1739447450309,0.77580034,95981.0,95980.0,0.0001065]
[1739447451784,0.78280034,95981.0,95980.0,0.0001065]
[1739447451989,0.77580034,95981.0,95980.0,0.0001065]
[1739447452221,0.82640034,95981.0,95980.0,0.0001065]
[1739447452657,0.85884526,95981.0,95980.0,0.0001065]
[1739447453066,0.339287,95977.0,95976.0,1e-08]
[1739447453294,0.51913557,95977.0,95976.0,1e-08]
[1739447453978,0.53863117,95977.0,95976.0,1e-08]
[1739447454186,0.54839615,95977.0,95976.0,1e-08]
[1739447454400,0.55615226,95977.0,95976.0,1e-08]
[1739447454941,0.56315226,95977.0,95976.0,1e-08]
[1739447455549,0.56315226,95977.0,95976.0,0.00100001]
[1739447455941,0.57482911,95977.0,95976.0,0.00100001]
[1739447456123,0.55065666,95977.0,95976.0,0.00100001]
[1739447456382,0.51821174,95977.0,95976.0,0.00100001]
[1739447456608,0.31331174,95977.0,95976.0,0.00100001]
[1739447457233,0.46331174,95977.0,95976.0,0.00100001]
[1739447458628,0.46331174,95977.0,95951.0,0.0004]
[1739447458629,0.156326,95953.0,95951.0,0.0004]
[1739447459352,0.2782451,95953.0,95951.0,0.0004]
[1739447460025,0.29301008,95953.0,95951.0,0.0004]
[1739447460235,0.29701008,95953.0,95951.0,0.0004]
[1739447460444,0.30476619,95953.0,95951.0,0.0004]
[1739447460667,0.20226254,95953.0,95951.0,0.0004]
[1739447461099,0.30476619,95953.0,95951.0,0.0004]
[1739447461532,0.30994047,95953.0,95951.0,0.0004]
[1739447461768,0.31094047,95953.0,95951.0,0.0004]
[1739447461969,0.29152502,95953.0,95951.0,0.0004]
[1739447462180,0.29652502,95953.0,95951.0,0.0004]
[1739447462476,0.28652502,95953.0,95951.0,0.0004]
[1739447462733,0.29552502,95953.0,95951.0,0.0004]
[1739447462954,0.29152502,95953.0,95951.0,0.0004]
[1739447463202,0.28652502,95953.0,95951.0,0.0004]
[1739447463675,0.28176004,95953.0,95951.0,0.0004]
[1739447463910,0.28676004,95953.0,95951.0,0.0004]
[1739447464144,0.43676004,95953.0,95951.0,0.0004]
[1739447464349,0.45976004,95953.0,95951.0,0.0004]
[1739447464793,0.49220496,95953.0,95951.0,0.0004]
[1739447465038,0.48720496,95953.0,95951.0,0.0004]
[1739447465248,0.61793203,95953.0,95951.0,0.0004]
[1739447465456,0.15,95946.0,95941.0,0.0001065]
[1739447465662,0.329344,95942.0,95941.0,0.0001065]
[1739447465867,0.46429257,95942.0,95941.0,0.0001065]
[1739447466501,0.55212539,95942.0,95941.0,5e-07]
[1739447466723,0.55212539,95942.0,95941.0,0.00013252]
[1739447467140,0.156368,95927.0,95926.0,0.0001065]
[1739447467357,0.156368,95927.0,95926.0,0.00023847]
[1739447467358,0.40887165,95927.0,95926.0,0.00023847]
[1739447467699,0.44131657,95927.0,95926.0,0.00023847]
[1739447467903,0.45102597,95927.0,95926.0,0.00023847]
[1739447468308,0.48178208,95927.0,95926.0,0.00023847]
[1739447468989,0.5150055,95927.0,95926.0,0.00023847]
[1739447469259,0.5150055,95927.0,95866.0,0.528938]
[1739447469260,0.023,95917.0,95866.0,0.528938]
[1739447469439,0.11683404,95880.0,95856.0,0.0001065]
[1739447469646,0.023,95879.0,95856.0,0.0001065]
[1739447469871,0.3,95884.0,95856.0,0.0001065]
[1739447470089,0.01017569,95879.0,95858.0,0.0484]
[1739447470295,0.0009981,95880.0,95858.0,0.0484]
[1739447470509,0.010284,95879.0,95859.0,0.00104309]
[1739447470720,0.11683404,95900.0,95859.0,0.00104309]
[1739447470931,0.006,95879.0,95878.0,0.156448]
[1739447471380,0.006,95879.0,95871.0,0.0779]
[1739447471586,0.208602,95876.0,95871.0,0.0779]
[1739447471815,0.156458,95872.0,95871.0,0.0779]
[1739447472029,0.156478,95860.0,95859.0,0.528938]
[1739447472236,0.208633,95863.0,95831.0,0.0004]
[1739447472237,0.156479,95859.0,95842.0,0.208674]
[1739447472444,0.156483,95857.0,95844.0,0.0469]
[1739447472692,0.156483,95857.0,95852.0,0.0808]
[1739447473122,0.156483,95857.0,95844.0,0.0469]
[1739447473335,0.25898665,95857.0,95856.0,0.00054663]
[1739447473962,0.023,95876.0,95856.0,0.00054663]
[1739447474171,0.162483,95857.0,95856.0,0.00054663]
[1739447474578,0.26498665,95857.0,95856.0,0.00054663]
[1739447475219,0.274656,95857.0,95856.0,0.00054663]
[1739447475482,0.268656,95857.0,95856.0,0.00054663]
[1739447475691,0.424656,95857.0,95856.0,0.00054663]
[1739447476138,0.418656,95857.0,95856.0,0.00054663]
[1739447476343,0.447656,95857.0,95856.0,0.00054663]
[1739447476569,0.448656,95857.0,95856.0,6.3e-07]
[1739447476804,0.48110092,95857.0,95856.0,6.3e-07]
[1739447477019,0.454656,95857.0,95856.0,6.3e-07]
[1739447477247,0.425656,95857.0,95845.0,1.3e-07]
[1739447477461,0.306501,95846.0,95845.0,0.00013244]
[1739447477668,0.40900465,95846.0,95845.0,0.00013244]
[1739447479199,0.41500465,95846.0,95845.0,0.00013244]
[1739447479643,0.44500465,95846.0,95845.0,0.00013244]
[1739447480045,0.43200465,95846.0,95845.0,0.00013244]
[1739447480270,0.43800465,95846.0,95845.0,0.00013244]
[1739447480485,0.43800465,95846.0,95808.0,0.0457]
[1739447480486,0.15,95825.0,95755.0,0.3217]
[1739447480692,0.15,95825.0,95698.0,0.0467]
[1739447480693,0.01,95749.0,95682.0,0.01086507]
[1739447480910,0.156715,95715.0,95714.0,0.00104444]
[1739447481124,0.01,95742.0,95671.0,0.0004]
[1739447481125,0.16672,95712.0,95691.0,0.00104474]
[1739447481341,0.281888,95712.0,95671.0,0.0004]
[1739447481559,0.281888,95712.0,95711.0,0.04592164]
[1739447481781,0.281888,95712.0,95711.0,0.03615946]
[1739447481782,0.381888,95712.0,95711.0,0.03615946]
[1739447482015,0.281888,95712.0,95711.0,0.03615946]
[1739447482237,0.125168,95712.0,95711.0,0.03615946]
[1739447482647,0.131168,95712.0,95711.0,0.03615946]
[1739447482856,0.3,95714.0,95711.0,0.04646326]
[1739447483087,0.0009995,95731.0,95711.0,0.04646326]
[1739447483325,0.17628256,95750.0,95711.0,0.04646326]
[1739447483326,0.1,95762.0,95711.0,0.04646326]
[1739447483540,0.0009859,95734.0,95711.0,0.04646326]
[1739447483745,0.0009859,95734.0,95712.0,0.0010447]
[1739447483950,0.1,95769.0,95718.0,0.0475]
[1739447484159,0.15,95759.0,95732.0,0.02121083]
[1739447484368,0.0009935,95769.0,95733.0,0.0781]
[1739447484791,0.20885,95763.0,95734.0,0.00104443]
[1739447484997,0.1,95779.0,95733.0,0.0781]
[1739447485216,0.0009982,95770.0,95750.0,0.17628256]
[1739447485428,0.0009982,95770.0,95751.0,0.00104421]
[1739447485705,0.0009982,95770.0,95761.0,0.15]
[1739447485890,0.156598,95787.0,95762.0,0.00104404]
[1739447486138,0.156598,95787.0,95752.0,0.0487]
[1739447486139,0.157587,95790.0,95770.0,0.17628256]
[1739447486349,0.004,95779.0,95771.0,0.00104396]
[1739447486563,0.000994,95790.0,95770.0,0.00044147]
[1739447486984,0.01,95819.0,95770.0,0.00044147]
[1739447486985,0.208805,95783.0,95770.0,0.00044147]
[1739447487192,0.1566,95786.0,95770.0,0.17672403]
[1739447487404,0.000995,95800.0,95770.0,0.17672403]
[1739447487610,0.156605,95782.0,95770.0,0.17672403]
[1739447487831,0.15,95798.0,95770.0,0.17672403]
[1739447488051,0.0009884,95799.0,95771.0,0.10354761]
[1739447488265,0.0009884,95799.0,95789.0,0.17628256]
[1739447488478,0.10250365,95798.0,95776.0,0.00104382]
[1739447488684,0.10250365,95798.0,95775.0,0.0773]
[1739447488892,0.156609,95780.0,95775.0,0.0773]
[1739447489329,0.156603,95784.0,95775.0,0.0773]
[1739447489745,0.156599,95786.0,95775.0,0.0773]
[1739447489963,0.156603,95784.0,95775.0,0.0773]
[1739447490172,0.208786,95792.0,95775.0,0.0773]
[1739447490378,0.10250365,95791.0,95775.0,0.0773]
[1739447490584,0.10250365,95791.0,95777.0,0.156612]
[1739447490787,0.0009831,95798.0,95778.0,0.15661]
[1739447491021,0.10250365,95797.0,95778.0,0.15661]
[1739447491275,0.156596,95788.0,95778.0,0.15661]
[1739447491514,0.156601,95785.0,95775.0,0.0803]
[1739447491712,0.156601,95785.0,95775.0,0.0773]
[1739447491930,0.208795,95788.0,95776.0,0.156614]
[1739447492141,0.156598,95787.0,95777.0,0.156613]
[1739447492348,0.208788,95791.0,95777.0,0.156612]
[1739447492349,0.156597,95788.0,95777.0,0.156612]
[1739447492559,0.208781,95794.0,95775.0,0.0773]
[1739447492741,0.10250365,95793.0,95776.0,0.156614]
[1739447492914,0.156596,95788.0,95776.0,0.156614]
[1739447493125,0.156612,95778.0,95775.0,0.0783]
[1739447493373,0.156608,95781.0,95775.0,0.0773]
[1739447493569,0.10250365,95793.0,95775.0,0.0773]
[1739447493980,0.10250365,95793.0,95777.0,0.156612]
[1739447494140,0.156595,95789.0,95779.0,0.15661]
[1739447494526,0.000985,95795.0,95775.0,0.0773]
[1739447494735,0.10250365,95794.0,95777.0,0.001]
[1739447495066,0.10250365,95794.0,95776.0,0.20882]
[1739447495265,0.10250365,95794.0,95775.0,0.0773]
[1739447495476,0.156587,95793.0,95784.0,0.156601]
[1739447495681,0.10250365,95792.0,95775.0,0.0773]
[1739447495886,0.001,95794.0,95775.0,0.0773]
[1739447496062,0.001,95794.0,95792.0,0.156588]
[1739447496258,0.0009979,95800.0,95780.0,0.17628256]
[1739447496468,0.156576,95801.0,95791.0,0.15659]
[1739447496675,0.001,95793.0,95791.0,0.15659]
[1739447496879,0.10250365,95792.0,95775.0,0.0773]
[1739447497340,0.156615,95776.0,95775.0,0.0773]
[1739447497544,0.208814,95779.0,95775.0,0.0773]
[1739447497746,0.156613,95777.0,95775.0,0.0773]
[1739447498282,0.156612,95778.0,95775.0,0.0773]
[1739447498665,0.10250365,95792.0,95775.0,0.233916]
[1739447498666,0.208798,95787.0,95775.0,0.233916]
[1739447498902,0.001,95794.0,95786.0,0.156599]
[1739447499108,0.208768,95800.0,95775.0,0.0773]
[1739447499322,0.0009995,95801.0,95775.0,0.0773]
[1739447499323,0.0009995,95801.0,95790.0,0.17628256]
[1739447499741,0.208746,95810.0,95782.0,0.0010438]
[1739447499945,0.156564,95808.0,95800.0,0.156575]
[1739447500129,0.0009886,95816.0,95781.0,0.15]
[1739447500344,0.156566,95807.0,95781.0,0.25250365]
[1739447500546,0.208749,95809.0,95781.0,0.10250365]
[1739447500794,0.10250365,95815.0,95783.0,0.15]
[1739447500980,0.03163634,95829.0,95806.0,0.156566]
[1739447500981,0.0009977,95807.0,95806.0,0.156566]
[1739447501386,0.156528,95830.0,95805.0,0.00104362]
[1739447501594,0.005,95801.0,95800.0,0.15761961]
[1739447501797,0.005,95801.0,95800.0,0.156576]
[1739447502023,0.10250365,95829.0,95799.0,0.0496]
[1739447502276,0.001,95807.0,95799.0,0.0496]
[1739447502484,0.001,95807.0,95801.0,0.156573]
[1739447502696,0.001,95807.0,95800.0,0.156576]
[1739447502902,0.001,95807.0,95803.0,0.15657]
[1739447503337,0.208722,95822.0,95799.0,0.0496]
[1739447503546,0.10250365,95821.0,95799.0,0.0496]
[1739447503755,0.10250365,95821.0,95802.0,0.156571]
[1739447503959,0.156543,95820.0,95804.0,0.208759]
[1739447504168,0.156555,95813.0,95800.0,0.001]
[1739447504368,0.156557,95812.0,95800.0,0.001]
[1739447504842,0.10250365,95821.0,95800.0,0.001]
[1739447505043,0.156557,95812.0,95805.0,0.156567]
[1739447505256,0.156557,95812.0,95801.0,0.208766]
[1739447505257,0.17628256,95820.0,95799.0,0.0496]
[1739447505466,0.17628256,95810.0,95777.0,0.08322194]
[1739447505670,0.156593,95790.0,95787.0,0.08322194]
[1739447505898,0.156585,95795.0,95788.0,0.156595]
[1739447506089,0.156585,95795.0,95787.0,0.08322194]
[1739447506090,0.10250365,95809.0,95799.0,0.156577]
[1739447506299,0.10250365,95809.0,95798.0,0.156578]
[1739447506300,0.10349305,95809.0,95798.0,0.156578]
[1739447506483,0.10349305,95809.0,95777.0,0.08322194]
[1739447506783,0.0009894,95809.0,95787.0,0.08322194]
[1739447506983,0.0009894,95809.0,95788.0,0.0010438]
[1739447507188,0.005,95821.0,95789.0,0.0010438]
[1739447507347,0.10250365,95820.0,95802.0,0.156571]
[1739447507545,0.156552,95815.0,95787.0,0.08322194]
[1739447507746,0.10250365,95815.0,95788.0,0.00104375]
[1739447508154,0.10348845,95815.0,95802.0,0.208763]
[1739447508326,0.004,95809.0,95798.0,0.208771]
[1739447508583,0.004,95809.0,95808.0,0.156563]
[1739447508788,0.156553,95814.0,95808.0,0.156563]
[1739447508989,0.10750365,95815.0,95808.0,0.156563]
[1739447509200,0.10750365,95815.0,95787.0,0.08322194]
[1739447509410,0.15657,95804.0,95797.0,0.15658]
[1739447509642,0.004,95809.0,95778.0,0.15]
[1739447509840,0.10250365,95808.0,95781.0,0.208809]
[1739447510052,0.208781,95794.0,95784.0,0.208803]
[1739447510317,0.10250365,95808.0,95777.0,0.08322194]
[1739447510499,0.156602,95784.0,95775.0,0.0773]
[1739447510898,0.156602,95784.0,95776.0,0.156615]
[1739447511364,0.156602,95784.0,95775.0,0.0773]
[1739447511565,0.156602,95784.0,95778.0,0.156611]
[1739447511698,0.156601,95785.0,95779.0,0.156609]
[1739447511901,0.001,95784.0,95779.0,0.156609]
[1739447512336,0.10250365,95794.0,95775.0,0.0773]
[1739447512539,0.10250365,95794.0,95787.0,0.156595]
[1739447512738,0.10250365,95794.0,95785.0,0.2088]
[1739447512919,0.10250365,95794.0,95781.0,0.156606]
[1739447513119,0.001,95784.0,95778.0,0.208814]
[1739447513315,0.001,95784.0,95778.0,0.156612]
[1739447513565,0.001,95784.0,95777.0,0.156613]
[1739447513753,0.19067792,95790.0,95775.0,0.0773]
[1739447513951,0.156602,95784.0,95775.0,0.233916]
[1739447514153,0.156602,95784.0,95776.0,0.156615]
[1739447514354,0.00974498,95784.0,95776.0,0.156614]
[1739447515099,0.00974498,95784.0,95778.0,0.156611]
[1739447515304,0.01074498,95784.0,95775.0,0.0774067]
[1739447515511,0.16734698,95784.0,95775.0,0.0774067]
[1739447515726,0.00974498,95784.0,95775.0,0.0774067]
[1739447515933,0.00974498,95784.0,95778.0,0.15661]
[1739447516180,0.00974498,95784.0,95783.0,0.00154817]
[1739447516402,0.16634698,95784.0,95783.0,0.00054817]
[1739447516603,0.00974498,95784.0,95783.0,0.00054817]
[1739447516805,0.02031003,95784.0,95783.0,0.00054817]
[1739447517017,0.16634698,95784.0,95783.0,0.00054817]
[1739447517187,0.00974498,95784.0,95783.0,0.00054817]
[1739447517878,0.00974498,95784.0,95783.0,0.15715117]
[1739447518299,0.01074498,95784.0,95783.0,0.15715117]
[1739447518525,0.00974498,95784.0,95783.0,0.15715117]
[1739447518959,0.00974498,95784.0,95783.0,0.15815117]
[1739447519173,0.00974498,95784.0,95783.0,0.26065482]
[1739447519392,0.00974498,95784.0,95783.0,0.41065482]
[1739447519612,0.00974498,95784.0,95783.0,0.44317616]
[1739447519816,0.00022408,95794.0,95793.0,0.156587]
[1739447520269,0.00022408,95794.0,95793.0,0.41013434]
[1739447520479,0.00022408,95794.0,95793.0,0.44161818]
[1739447521104,0.00022408,95794.0,95793.0,0.40909065]
[1739447521748,0.00122408,95794.0,95793.0,0.310587]
[1739447522601,0.00022408,95794.0,95793.0,0.306587]
[1739447522809,0.00998282,95794.0,95793.0,0.306587]
[1739447523015,0.01098282,95794.0,95793.0,0.310587]
[1739447523231,0.01098282,95794.0,95793.0,0.004]
[1739447523439,0.27007247,95794.0,95793.0,0.004]
[1739447525201,0.156602,95784.0,95783.0,0.00054817]